[Event "Titled Tuesday Blitz March 08 Early 2022"]
[White "Horak, Martin"]
[Black "Sarkar, Justin"]
[WhiteFideId "367095"]
[BlackFideId "2010011"]
[WhiteElo "1997"]
[BlackElo "2038"]
[Result "1-0"]
[Round "09"]
[TimeControl "180+1"]
[Date "2022.03.09"]
[WhiteClock "0:00:03"]
[BlackClock "0:00:10"]

1. d4 {[%clk 0:03:00]}  Nf6 {[%clk 0:02:44]} 2. Nf3 {[%clk 0:02:59]}  d5 {[%clk 0:02:42]} 3. c4 {[%clk 0:02:57]}  e6 {[%clk 0:02:40]} 4. Nc3 {[%clk 0:02:54]}  Be7 {[%clk 0:02:39]} 5. Bf4 {[%clk 0:02:54]}  O-O {[%clk 0:02:32]} 6. e3 {[%clk 0:02:53]}  a6 {[%clk 0:02:26]} 7. cxd5 {[%clk 0:02:50]}  Nxd5 {[%clk 0:02:20]} 8. Nxd5 {[%clk 0:02:46]}  exd5 {[%clk 0:02:21]} 9. a3 {[%clk 0:02:44]}  Be6 {[%clk 0:02:15]} 10. Bd3 {[%clk 0:02:39]}  Nd7 {[%clk 0:02:08]} 11. O-O {[%clk 0:02:26]}  c6 {[%clk 0:01:43]} 12. Qc2 {[%clk 0:01:47]}  h6 {[%clk 0:01:33]} 13. h3 {[%clk 0:01:43]}  Nb6 {[%clk 0:01:26]} 14. b3 {[%clk 0:01:27]}  Nc8 {[%clk 0:01:21]} 15. a4 {[%clk 0:01:10]}  a5 {[%clk 0:01:13]} 16. Be5 {[%clk 0:00:48]}  Bd6 {[%clk 0:01:09]} 17. Rac1 {[%clk 0:00:31]}  f6 {[%clk 0:01:02]} 18. Bxd6 {[%clk 0:00:19]}  Nxd6 {[%clk 0:01:02]} 19. Bh7+ {[%clk 0:00:12]}  Kh8 {[%clk 0:01:01]} 20. Bd3 {[%clk 0:00:06]}  g5 {[%clk 0:00:47]} 21. Nh2 {[%clk 0:00:05]}  Qd7 {[%clk 0:00:38]} 22. f4 {[%clk 0:00:05]}  Bf5 {[%clk 0:00:33]} 23. g4 {[%clk 0:00:03]}  Bxd3 {[%clk 0:00:31]} 24. Qxd3 {[%clk 0:00:04]}  Ne4 {[%clk 0:00:30]} 25. Rfe1 {[%clk 0:00:01]}  Rae8 {[%clk 0:00:29]} 26. Nf1 {[%clk 0:00:02]}  Qd6 {[%clk 0:00:27]} 27. Kg2 {[%clk 0:00:01]}  gxf4 {[%clk 0:00:27]} 28. exf4 {[%clk 0:00:02]}  Qxf4 {[%clk 0:00:27]} 29. Qf3 {[%clk 0:00:03]}  Qg5 {[%clk 0:00:23]} 30. Ng3 {[%clk 0:00:03]}  Nxg3 {[%clk 0:00:18]} 31. Kxg3 {[%clk 0:00:04]}  Rxe1 {[%clk 0:00:16]} 32. Rxe1 {[%clk 0:00:04]}  f5 {[%clk 0:00:16]} 33. Re5 {[%clk 0:00:03]}  fxg4 {[%clk 0:00:15]} 34. Qxf8+ {[%clk 0:00:02]}  Kh7 {[%clk 0:00:14]} 35. Re7+ {[%clk 0:00:03]}  Kg6 {[%clk 0:00:10]} 36. Qf7# {[%clk 0:00:03]} 1-0


[Site "https://www.chess.com"]

[Event "Titled Tuesday Blitz March 08 Early 2022"]
[White "Hryshchenko, Kamila"]
[Black "Dejmek, Mark"]
[WhiteFideId "14147491"]
[BlackFideId "2017628"]
[WhiteElo "1929"]
[BlackElo "2241"]
[Result "1-0"]
[Round "09"]
[TimeControl "180+1"]
[Date "2022.03.09"]
[WhiteClock "0:01:35"]
[BlackClock "0:00:07"]

1. e4 {[%clk 0:03:00]}  e5 {[%clk 0:02:58]} 2. Nf3 {[%clk 0:03:00]}  Nc6 {[%clk 0:02:58]} 3. Nc3 {[%clk 0:02:58]}  Nf6 {[%clk 0:02:53]} 4. h3 {[%clk 0:02:57]}  a6 {[%clk 0:02:45]} 5. d4 {[%clk 0:02:55]}  exd4 {[%clk 0:02:31]} 6. Nxd4 {[%clk 0:02:51]}  Bb4 {[%clk 0:02:29]} 7. Nxc6 {[%clk 0:02:50]}  bxc6 {[%clk 0:02:25]} 8. Bd3 {[%clk 0:02:46]}  O-O {[%clk 0:02:10]} 9. O-O {[%clk 0:02:45]}  d5 {[%clk 0:02:05]} 10. e5 {[%clk 0:02:37]}  Nd7 {[%clk 0:01:56]} 11. f4 {[%clk 0:02:33]}  Nc5 {[%clk 0:01:47]} 12. f5 {[%clk 0:02:33]}  Nxd3 {[%clk 0:01:31]} 13. cxd3 {[%clk 0:02:33]}  Qh4 {[%clk 0:01:22]} 14. Rf4 {[%clk 0:02:18]}  Qe7 {[%clk 0:01:11]} 15. f6 {[%clk 0:02:17]}  Qxe5 {[%clk 0:00:50]} 16. fxg7 {[%clk 0:02:06]}  Bc5+ {[%clk 0:00:31]} 17. d4 {[%clk 0:02:05]}  Qxg7 {[%clk 0:00:32]} 18. dxc5 {[%clk 0:02:03]}  Kh8 {[%clk 0:00:31]} 19. Be3 {[%clk 0:02:01]}  Be6 {[%clk 0:00:31]} 20. Bd4 {[%clk 0:02:00]}  f6 {[%clk 0:00:31]} 21. Qf1 {[%clk 0:02:00]}  Bxh3 {[%clk 0:00:22]} 22. Qf3 {[%clk 0:01:59]}  Bxg2 {[%clk 0:00:13]} 23. Qxg2 {[%clk 0:01:58]}  Qe7 {[%clk 0:00:11]} 24. Rxf6 {[%clk 0:01:48]}  Rxf6 {[%clk 0:00:08]} 25. Rf1 {[%clk 0:01:48]}  Rf8 {[%clk 0:00:08]} 26. Qg5 {[%clk 0:01:39]}  Qe3+ {[%clk 0:00:07]} 27. Qxe3 {[%clk 0:01:35]} 1-0


[Site "https://www.chess.com"]

[Event "Titled Tuesday Blitz March 08 Early 2022"]
[White "Hua, Lefong"]
[Black "Batsiashvili, Nino"]
[WhiteFideId "2602253"]
[BlackFideId "13602993"]
[WhiteElo "2607"]
[BlackElo "2192"]
[Result "0-1"]
[Round "09"]
[TimeControl "180+1"]
[Date "2022.03.09"]
[WhiteClock "0:00:31"]
[BlackClock "0:00:46"]

1. d4 {[%clk 0:02:58]}  Nf6 {[%clk 0:02:58]} 2. c4 {[%clk 0:02:59]}  e6 {[%clk 0:02:59]} 3. Nc3 {[%clk 0:02:59]}  Bb4 {[%clk 0:02:55]} 4. f3 {[%clk 0:02:59]}  d5 {[%clk 0:02:54]} 5. a3 {[%clk 0:02:59]}  Bxc3+ {[%clk 0:02:53]} 6. bxc3 {[%clk 0:03:00]}  c5 {[%clk 0:02:51]} 7. cxd5 {[%clk 0:02:59]}  exd5 {[%clk 0:02:51]} 8. e3 {[%clk 0:02:58]}  O-O {[%clk 0:02:49]} 9. Bd3 {[%clk 0:02:59]}  b6 {[%clk 0:02:49]} 10. Ne2 {[%clk 0:02:59]}  Ba6 {[%clk 0:02:49]} 11. O-O {[%clk 0:02:58]}  Re8 {[%clk 0:02:48]} 12. Ng3 {[%clk 0:02:56]}  Bxd3 {[%clk 0:02:46]} 13. Qxd3 {[%clk 0:02:57]}  Nc6 {[%clk 0:02:46]} 14. Bb2 {[%clk 0:02:56]}  h5 {[%clk 0:02:46]} 15. Rae1 {[%clk 0:02:46]}  h4 {[%clk 0:02:46]} 16. Nf5 {[%clk 0:02:46]}  h3 {[%clk 0:02:41]} 17. g4 {[%clk 0:02:41]}  Ne7 {[%clk 0:02:36]} 18. Ng3 {[%clk 0:02:36]}  Rc8 {[%clk 0:02:33]} 19. g5 {[%clk 0:02:34]}  Nh7 {[%clk 0:02:30]} 20. f4 {[%clk 0:02:29]}  Qd7 {[%clk 0:02:29]} 21. Rf3 {[%clk 0:02:14]}  Qg4 {[%clk 0:02:28]} 22. Qf1 {[%clk 0:02:09]}  Nf5 {[%clk 0:02:23]} 23. Kh1 {[%clk 0:02:03]}  Nh4 {[%clk 0:02:20]} 24. Rf2 {[%clk 0:02:03]}  cxd4 {[%clk 0:02:15]} 25. cxd4 {[%clk 0:02:02]}  f5 {[%clk 0:02:01]} 26. Qe2 {[%clk 0:01:58]}  Qxe2 {[%clk 0:01:59]} 27. Rexe2 {[%clk 0:01:57]}  Nf8 {[%clk 0:01:59]} 28. Rc2 {[%clk 0:01:54]}  Rxc2 {[%clk 0:01:57]} 29. Rxc2 {[%clk 0:01:55]}  Rxe3 {[%clk 0:01:57]} 30. Kg1 {[%clk 0:01:51]}  Rf3 {[%clk 0:01:48]} 31. Bc1 {[%clk 0:01:46]}  Ne6 {[%clk 0:01:48]} 32. g6 {[%clk 0:01:41]}  Nxg6 {[%clk 0:01:47]} 33. Nxf5 {[%clk 0:01:40]}  Ngxf4 {[%clk 0:01:44]} 34. Bxf4 {[%clk 0:01:24]}  Nxf4 {[%clk 0:01:45]} 35. Rf2 {[%clk 0:01:03]}  Rxf2 {[%clk 0:01:35]} 36. Kxf2 {[%clk 0:01:04]}  Kf7 {[%clk 0:01:35]} 37. Nd6+ {[%clk 0:01:03]}  Ke6 {[%clk 0:01:31]} 38. Nc8 {[%clk 0:01:04]}  Kf5 {[%clk 0:01:30]} 39. Ke3 {[%clk 0:00:56]}  g5 {[%clk 0:01:28]} 40. Nxa7 {[%clk 0:00:56]}  g4 {[%clk 0:01:28]} 41. Kf2 {[%clk 0:00:52]}  Ne6 {[%clk 0:01:18]} 42. Nc8 {[%clk 0:00:49]}  Nxd4 {[%clk 0:01:11]} 43. Nxb6 {[%clk 0:00:49]}  Ke4 {[%clk 0:01:08]} 44. a4 {[%clk 0:00:49]}  Nc6 {[%clk 0:01:03]} 45. Nd7 {[%clk 0:00:48]}  d4 {[%clk 0:01:02]} 46. Nf6+ {[%clk 0:00:48]}  Kf5 {[%clk 0:00:59]} 47. Nd5 {[%clk 0:00:46]}  Ke5 {[%clk 0:00:56]} 48. Nb6 {[%clk 0:00:43]}  Ke4 {[%clk 0:00:53]} 49. Nc4 {[%clk 0:00:41]}  d3 {[%clk 0:00:50]} 50. a5 {[%clk 0:00:34]}  Nxa5 {[%clk 0:00:50]} 51. Nxa5 {[%clk 0:00:34]}  g3+ {[%clk 0:00:48]} 52. hxg3 {[%clk 0:00:31]}  h2 {[%clk 0:00:46]} 0-1


[Site "https://www.chess.com"]

[Event "Titled Tuesday Blitz March 08 Early 2022"]
[White "Ianov, Viktor"]
[Black "Yandarbiev, Ruslan"]
[WhiteFideId "14102730"]
[BlackFideId "4115023"]
[WhiteElo "2161"]
[BlackElo "2102"]
[Result "1-0"]
[Round "09"]
[TimeControl "180+1"]
[Date "2022.03.09"]
[WhiteClock "0:02:03"]
[BlackClock "0:00:14"]

1. Nf3 {[%clk 0:03:00]}  Nf6 {[%clk 0:02:59]} 2. g3 {[%clk 0:03:00]}  b6 {[%clk 0:02:57]} 3. Bg2 {[%clk 0:03:00]}  Bb7 {[%clk 0:02:58]} 4. c4 {[%clk 0:03:00]}  g6 {[%clk 0:02:58]} 5. O-O {[%clk 0:03:00]}  Bg7 {[%clk 0:02:59]} 6. b3 {[%clk 0:03:00]}  O-O {[%clk 0:02:59]} 7. Bb2 {[%clk 0:03:00]}  c5 {[%clk 0:02:55]} 8. d3 {[%clk 0:02:59]}  d6 {[%clk 0:02:45]} 9. Nc3 {[%clk 0:02:58]}  e5 {[%clk 0:02:42]} 10. Re1 {[%clk 0:02:56]}  Nbd7 {[%clk 0:02:39]} 11. Nxe5 {[%clk 0:02:55]}  Bxg2 {[%clk 0:02:23]} 12. Nxd7 {[%clk 0:02:54]}  Bb7 {[%clk 0:01:57]} 13. Nxf8 {[%clk 0:02:51]}  Kxf8 {[%clk 0:01:58]} 14. Qd2 {[%clk 0:02:50]}  Qd7 {[%clk 0:01:58]} 15. e4 {[%clk 0:02:49]}  h5 {[%clk 0:01:57]} 16. f3 {[%clk 0:02:43]}  h4 {[%clk 0:01:57]} 17. Kg2 {[%clk 0:02:41]}  Bc8 {[%clk 0:01:43]} 18. g4 {[%clk 0:02:32]}  Nxg4 {[%clk 0:00:59]} 19. fxg4 {[%clk 0:02:31]}  Qxg4+ {[%clk 0:00:59]} 20. Kh1 {[%clk 0:02:29]}  h3 {[%clk 0:00:50]} 21. Qe2 {[%clk 0:02:23]}  Qh4 {[%clk 0:00:46]} 22. Rg1 {[%clk 0:02:21]}  Bd4 {[%clk 0:00:41]} 23. Rg3 {[%clk 0:02:19]}  Be5 {[%clk 0:00:41]} 24. Rag1 {[%clk 0:02:16]}  Bxg3 {[%clk 0:00:24]} 25. Rxg3 {[%clk 0:02:15]}  g5 {[%clk 0:00:15]} 26. Nd5 {[%clk 0:02:13]}  g4 {[%clk 0:00:15]} 27. Qf2 {[%clk 0:02:07]}  Be6 {[%clk 0:00:14]} 28. Qf6 {[%clk 0:02:03]} 1-0


[Site "https://www.chess.com"]

[Event "Titled Tuesday Blitz March 08 Early 2022"]
[White "Jaskolka, Tomasz"]
[Black "Morefield, Jason"]
[WhiteFideId "1170791"]
[BlackFideId "30920825"]
[WhiteElo "2073"]
[BlackElo "2171"]
[Result "1-0"]
[Round "09"]
[TimeControl "180+1"]
[Date "2022.03.09"]
[WhiteClock "0:00:10"]
[BlackClock "0:01:04"]

1. d4 {[%clk 0:02:55]}  d5 {[%clk 0:03:00]} 2. Bf4 {[%clk 0:02:54]}  c5 {[%clk 0:03:00]} 3. e3 {[%clk 0:02:54]}  Nc6 {[%clk 0:03:00]} 4. Nf3 {[%clk 0:02:53]}  Bf5 {[%clk 0:02:59]} 5. Nbd2 {[%clk 0:02:53]}  e6 {[%clk 0:02:59]} 6. c3 {[%clk 0:02:50]}  Bd6 {[%clk 0:02:58]} 7. Qa4 {[%clk 0:02:41]}  Ne7 {[%clk 0:02:52]} 8. Bg3 {[%clk 0:02:31]}  O-O {[%clk 0:02:51]} 9. Be2 {[%clk 0:02:31]}  a6 {[%clk 0:02:50]} 10. Bxd6 {[%clk 0:02:23]}  Qxd6 {[%clk 0:02:51]} 11. Qa3 {[%clk 0:02:24]}  b6 {[%clk 0:02:51]} 12. dxc5 {[%clk 0:02:12]}  bxc5 {[%clk 0:02:52]} 13. Nb3 {[%clk 0:02:12]}  d4 {[%clk 0:02:46]} 14. exd4 {[%clk 0:02:04]}  Nd5 {[%clk 0:02:43]} 15. Qxc5 {[%clk 0:02:00]}  Qd7 {[%clk 0:02:43]} 16. g3 {[%clk 0:01:53]}  Rfe8 {[%clk 0:02:32]} 17. Ne5 {[%clk 0:01:49]}  Nxe5 {[%clk 0:02:32]} 18. dxe5 {[%clk 0:01:49]}  Be4 {[%clk 0:02:27]} 19. O-O {[%clk 0:01:48]}  Rec8 {[%clk 0:02:21]} 20. Qd6 {[%clk 0:01:40]}  Qxd6 {[%clk 0:02:20]} 21. exd6 {[%clk 0:01:40]}  Rd8 {[%clk 0:02:19]} 22. Rad1 {[%clk 0:01:38]}  g5 {[%clk 0:02:14]} 23. c4 {[%clk 0:01:27]}  Nb4 {[%clk 0:02:12]} 24. c5 {[%clk 0:01:17]}  Nxa2 {[%clk 0:02:02]} 25. Rd4 {[%clk 0:00:57]}  Bd5 {[%clk 0:02:02]} 26. Bc4 {[%clk 0:00:55]}  Nb4 {[%clk 0:02:01]} 27. Bxd5 {[%clk 0:00:50]}  Nxd5 {[%clk 0:02:02]} 28. Na5 {[%clk 0:00:46]}  Rac8 {[%clk 0:01:56]} 29. b4 {[%clk 0:00:42]}  f5 {[%clk 0:01:53]} 30. Rfd1 {[%clk 0:00:36]}  Kf7 {[%clk 0:01:52]} 31. Nc4 {[%clk 0:00:28]}  Kf6 {[%clk 0:01:39]} 32. Rxd5 {[%clk 0:00:22]}  exd5 {[%clk 0:01:39]} 33. Rxd5 {[%clk 0:00:21]}  Ke6 {[%clk 0:01:38]} 34. Re5+ {[%clk 0:00:21]}  Kf6 {[%clk 0:01:38]} 35. Re7 {[%clk 0:00:20]}  h5 {[%clk 0:01:34]} 36. Nb6 {[%clk 0:00:19]}  Rc6 {[%clk 0:01:30]} 37. Nd5+ {[%clk 0:00:19]}  Kg6 {[%clk 0:01:30]} 38. Rc7 {[%clk 0:00:17]}  Rcxd6 {[%clk 0:01:28]} 39. cxd6 {[%clk 0:00:17]}  Rxd6 {[%clk 0:01:29]} 40. Ne3 {[%clk 0:00:15]}  f4 {[%clk 0:01:29]} 41. gxf4 {[%clk 0:00:15]}  gxf4 {[%clk 0:01:29]} 42. Nc4 {[%clk 0:00:16]}  Rd4 {[%clk 0:01:28]} 43. Rc6+ {[%clk 0:00:10]}  Kg5 {[%clk 0:01:28]} 44. Rc5+ {[%clk 0:00:08]}  Kg4 {[%clk 0:01:26]} 45. Ne5+ {[%clk 0:00:08]}  Kh3 {[%clk 0:01:26]} 46. Kf1 {[%clk 0:00:07]}  Rxb4 {[%clk 0:01:23]} 47. Nd3 {[%clk 0:00:07]}  Rb1+ {[%clk 0:01:23]} 48. Ke2 {[%clk 0:00:07]}  h4 {[%clk 0:01:21]} 49. Nxf4+ {[%clk 0:00:06]}  Kxh2 {[%clk 0:01:21]} 50. Rh5 {[%clk 0:00:06]}  a5 {[%clk 0:01:17]} 51. Rxh4+ {[%clk 0:00:06]}  Kg1 {[%clk 0:01:18]} 52. Nh3+ {[%clk 0:00:05]}  Kg2 {[%clk 0:01:16]} 53. Nf4+ {[%clk 0:00:05]}  Kg1 {[%clk 0:01:16]} 54. Rg4+ {[%clk 0:00:06]}  Kh2 {[%clk 0:01:13]} 55. Nd5 {[%clk 0:00:07]}  Rb2+ {[%clk 0:01:12]} 56. Kf3 {[%clk 0:00:07]}  Rb3+ {[%clk 0:01:11]} 57. Ne3 {[%clk 0:00:07]}  Ra3 {[%clk 0:01:09]} 58. Rh4+ {[%clk 0:00:07]}  Kg1 {[%clk 0:01:09]} 59. Rg4+ {[%clk 0:00:08]}  Kh2 {[%clk 0:01:09]} 60. Rg2+ {[%clk 0:00:08]}  Kh1 {[%clk 0:01:09]} 61. Rg8 {[%clk 0:00:09]}  a4 {[%clk 0:01:07]} 62. Kg3 {[%clk 0:00:09]}  Rb3 {[%clk 0:01:02]} 63. Rd8 {[%clk 0:00:09]}  Rb1 {[%clk 0:00:59]} 64. Rd1+ {[%clk 0:00:07]}  Rxd1 {[%clk 0:00:59]} 65. Nxd1 {[%clk 0:00:08]}  Kg1 {[%clk 0:01:00]} 66. f4 {[%clk 0:00:08]}  Kf1 {[%clk 0:01:00]} 67. f5 {[%clk 0:00:09]}  Ke1 {[%clk 0:01:01]} 68. Nc3 {[%clk 0:00:08]}  a3 {[%clk 0:01:01]} 69. f6 {[%clk 0:00:09]}  Kd2 {[%clk 0:01:02]} 70. Na2 {[%clk 0:00:09]}  Kc2 {[%clk 0:01:03]} 71. f7 {[%clk 0:00:10]}  Kb2 {[%clk 0:01:03]} 72. f8=Q {[%clk 0:00:09]}  Kxa2 {[%clk 0:01:04]} 73. Qb4 {[%clk 0:00:10]} 1-0


[Site "https://www.chess.com"]

[Event "Titled Tuesday Blitz March 08 Early 2022"]
[White "Kadam, Om Manish"]
[Black "Matinian, Nikita"]
[WhiteFideId "45076294"]
[BlackFideId "24129100"]
[WhiteElo "1729"]
[BlackElo "2422"]
[Result "0-1"]
[Round "09"]
[TimeControl "180+1"]
[Date "2022.03.08"]
[WhiteClock "0:01:23"]
[BlackClock "0:02:08"]

1. e4 {[%clk 0:03:00]}  c5 {[%clk 0:02:59]} 2. Nf3 {[%clk 0:02:59]}  e6 {[%clk 0:02:59]} 3. d4 {[%clk 0:02:59]}  cxd4 {[%clk 0:02:59]} 4. Nxd4 {[%clk 0:03:00]}  Nc6 {[%clk 0:03:00]} 5. Nc3 {[%clk 0:02:58]}  Nf6 {[%clk 0:03:01]} 6. Be3 {[%clk 0:02:58]}  Bb4 {[%clk 0:03:00]} 7. f3 {[%clk 0:02:58]}  d5 {[%clk 0:02:59]} 8. Nxc6 {[%clk 0:02:56]}  bxc6 {[%clk 0:03:00]} 9. exd5 {[%clk 0:02:49]}  Nxd5 {[%clk 0:02:58]} 10. Bd2 {[%clk 0:02:47]}  Qh4+ {[%clk 0:02:57]} 11. g3 {[%clk 0:02:44]}  Qf6 {[%clk 0:02:56]} 12. Nxd5 {[%clk 0:02:23]}  Bxd2+ {[%clk 0:02:55]} 13. Qxd2 {[%clk 0:02:24]}  cxd5 {[%clk 0:02:56]} 14. c3 {[%clk 0:02:21]}  Qxf3 {[%clk 0:02:52]} 15. Bg2 {[%clk 0:02:22]}  Qf5 {[%clk 0:02:48]} 16. O-O-O {[%clk 0:02:16]}  O-O {[%clk 0:02:47]} 17. Rhf1 {[%clk 0:02:14]}  Qg6 {[%clk 0:02:46]} 18. Rde1 {[%clk 0:02:13]}  Rb8 {[%clk 0:02:44]} 19. Qf4 {[%clk 0:02:07]}  Ba6 {[%clk 0:02:42]} 20. Rf2 {[%clk 0:02:05]}  Bc4 {[%clk 0:02:41]} 21. a3 {[%clk 0:01:58]}  Rfc8 {[%clk 0:02:39]} 22. Bh3 {[%clk 0:01:55]}  Ba2 {[%clk 0:02:33]} 23. Rc2 {[%clk 0:01:46]}  Rb6 {[%clk 0:02:20]} 24. Rf1 {[%clk 0:01:33]}  Rc4 {[%clk 0:02:09]} 25. Qf2 {[%clk 0:01:23]}  Qh6+ {[%clk 0:02:08]} 0-1


[Site "https://www.chess.com"]

[Event "Titled Tuesday Blitz March 08 Early 2022"]
[White "Kanyamarala, Tarun"]
[Black "Karolczuk, Iwo"]
[WhiteFideId "45004714"]
[BlackFideId "21816972"]
[WhiteElo "2075"]
[BlackElo "2243"]
[Result "1-0"]
[Round "09"]
[TimeControl "180+1"]
[Date "2022.03.09"]
[WhiteClock "0:00:14"]
[BlackClock "0:00:03"]

1. d4 {[%clk 0:03:00]}  Nf6 {[%clk 0:02:59]} 2. c4 {[%clk 0:03:01]}  g6 {[%clk 0:02:59]} 3. Nc3 {[%clk 0:03:00]}  Bg7 {[%clk 0:03:00]} 4. e4 {[%clk 0:03:00]}  O-O {[%clk 0:03:00]} 5. Nf3 {[%clk 0:02:59]}  d6 {[%clk 0:02:59]} 6. Be2 {[%clk 0:02:58]}  e5 {[%clk 0:02:57]} 7. d5 {[%clk 0:02:58]}  a5 {[%clk 0:02:51]} 8. Bg5 {[%clk 0:02:58]}  h6 {[%clk 0:02:48]} 9. Be3 {[%clk 0:02:57]}  Na6 {[%clk 0:02:47]} 10. h3 {[%clk 0:02:50]}  b6 {[%clk 0:02:45]} 11. g4 {[%clk 0:02:45]}  Nc5 {[%clk 0:02:37]} 12. Nd2 {[%clk 0:02:45]}  Ne8 {[%clk 0:02:26]} 13. h4 {[%clk 0:02:41]}  f5 {[%clk 0:02:15]} 14. h5 {[%clk 0:02:34]}  f4 {[%clk 0:02:04]} 15. Bxc5 {[%clk 0:02:32]}  bxc5 {[%clk 0:02:05]} 16. hxg6 {[%clk 0:02:30]}  Rf6 {[%clk 0:01:48]} 17. g5 {[%clk 0:02:29]}  Rxg6 {[%clk 0:01:27]} 18. gxh6 {[%clk 0:02:26]}  Rxh6 {[%clk 0:01:25]} 19. Rxh6 {[%clk 0:02:24]}  Bxh6 {[%clk 0:01:26]} 20. Bg4 {[%clk 0:02:24]}  Qh4 {[%clk 0:01:19]} 21. Bxc8 {[%clk 0:02:22]}  Rxc8 {[%clk 0:01:20]} 22. Nf3 {[%clk 0:02:21]}  Qg4 {[%clk 0:01:12]} 23. Ke2 {[%clk 0:02:19]}  Nf6 {[%clk 0:01:11]} 24. Qh1 {[%clk 0:02:19]}  Kh7 {[%clk 0:00:57]} 25. Rg1 {[%clk 0:02:12]}  Qh5 {[%clk 0:00:56]} 26. Qxh5 {[%clk 0:01:52]}  Nxh5 {[%clk 0:00:57]} 27. Nb5 {[%clk 0:01:48]}  Nf6 {[%clk 0:00:55]} 28. Kd3 {[%clk 0:01:48]}  c6 {[%clk 0:00:29]} 29. Nxd6 {[%clk 0:01:47]}  Rd8 {[%clk 0:00:29]} 30. Nf5 {[%clk 0:01:36]}  cxd5 {[%clk 0:00:28]} 31. cxd5 {[%clk 0:01:36]}  c4+ {[%clk 0:00:27]} 32. Kxc4 {[%clk 0:01:16]}  Nxe4 {[%clk 0:00:27]} 33. Rh1 {[%clk 0:01:15]}  Kg6 {[%clk 0:00:27]} 34. Nxh6 {[%clk 0:01:10]}  Nxf2 {[%clk 0:00:27]} 35. Nxe5+ {[%clk 0:01:04]}  Kg7 {[%clk 0:00:18]} 36. Rh2 {[%clk 0:01:01]}  Ne4 {[%clk 0:00:15]} 37. Nhf7 {[%clk 0:00:55]}  Rc8+ {[%clk 0:00:14]} 38. Kd4 {[%clk 0:00:55]}  Ng3 {[%clk 0:00:14]} 39. d6 {[%clk 0:00:51]}  Nf5+ {[%clk 0:00:13]} 40. Ke4 {[%clk 0:00:50]}  Kf6 {[%clk 0:00:12]} 41. Nd7+ {[%clk 0:00:43]}  Ke6 {[%clk 0:00:11]} 42. Ng5+ {[%clk 0:00:26]}  Kxd7 {[%clk 0:00:09]} 43. Kxf5 {[%clk 0:00:26]}  Kxd6 {[%clk 0:00:09]} 44. Kxf4 {[%clk 0:00:26]}  Rc4+ {[%clk 0:00:09]} 45. Ne4+ {[%clk 0:00:26]}  Kd5 {[%clk 0:00:09]} 46. Rd2+ {[%clk 0:00:26]}  Kc6 {[%clk 0:00:09]} 47. Ke5 {[%clk 0:00:26]}  Kb6 {[%clk 0:00:08]} 48. Kd5 {[%clk 0:00:26]}  Rc1 {[%clk 0:00:08]} 49. Nc3 {[%clk 0:00:26]}  Rh1 {[%clk 0:00:08]} 50. Kc4 {[%clk 0:00:26]}  Rh4+ {[%clk 0:00:08]} 51. Rd4 {[%clk 0:00:25]}  Rh6 {[%clk 0:00:08]} 52. Kb3 {[%clk 0:00:24]}  Rh2 {[%clk 0:00:08]} 53. Rd6+ {[%clk 0:00:23]}  Kc5 {[%clk 0:00:08]} 54. Rd5+ {[%clk 0:00:23]}  Kb6 {[%clk 0:00:08]} 55. Ka3 {[%clk 0:00:23]}  Rh4 {[%clk 0:00:08]} 56. Rg5 {[%clk 0:00:22]}  Rc4 {[%clk 0:00:05]} 57. Na4+ {[%clk 0:00:17]}  Ka6 {[%clk 0:00:06]} 58. b3 {[%clk 0:00:17]}  Rh4 {[%clk 0:00:05]} 59. Rg6+ {[%clk 0:00:16]}  Ka7 {[%clk 0:00:05]} 60. Nc3 {[%clk 0:00:16]}  Rf4 {[%clk 0:00:04]} 61. Nb5+ {[%clk 0:00:16]}  Kb7 {[%clk 0:00:03]} 62. Nd6+ {[%clk 0:00:15]}  Ka7 {[%clk 0:00:03]} 63. Nc4 {[%clk 0:00:14]}  a4 {[%clk 0:00:03]} 64. Kxa4 {[%clk 0:00:14]} 1-0


[Site "https://www.chess.com"]

[Event "Titled Tuesday Blitz March 08 Early 2022"]
[White "Kosakowski, Jakub"]
[Black "Aldokhin, Ivan"]
[WhiteFideId "1185080"]
[BlackFideId "24115720"]
[WhiteElo "2476"]
[BlackElo "2231"]
[Result "1-0"]
[Round "09"]
[TimeControl "180+1"]
[Date "2022.03.09"]
[WhiteClock "0:00:53"]
[BlackClock "0:00:20"]

1. c4 {[%clk 0:02:52]}  Nf6 {[%clk 0:02:59]} 2. Nc3 {[%clk 0:02:51]}  g6 {[%clk 0:03:00]} 3. Nf3 {[%clk 0:02:50]}  d6 {[%clk 0:03:01]} 4. e4 {[%clk 0:02:49]}  Bg7 {[%clk 0:03:01]} 5. d4 {[%clk 0:02:50]}  O-O {[%clk 0:02:59]} 6. Be2 {[%clk 0:02:50]}  Nc6 {[%clk 0:02:54]} 7. Be3 {[%clk 0:02:12]}  Re8 {[%clk 0:02:54]} 8. h3 {[%clk 0:02:09]}  e5 {[%clk 0:02:54]} 9. d5 {[%clk 0:02:09]}  Nd4 {[%clk 0:02:55]} 10. O-O {[%clk 0:02:04]}  Nxe2+ {[%clk 0:02:55]} 11. Qxe2 {[%clk 0:02:04]}  Nh5 {[%clk 0:02:55]} 12. c5 {[%clk 0:02:03]}  dxc5 {[%clk 0:02:29]} 13. Bxc5 {[%clk 0:02:00]}  Nf4 {[%clk 0:02:30]} 14. Qd1 {[%clk 0:01:58]}  Qf6 {[%clk 0:02:29]} 15. Be3 {[%clk 0:01:55]}  Nxh3+ {[%clk 0:02:15]} 16. gxh3 {[%clk 0:01:54]}  Bxh3 {[%clk 0:02:16]} 17. Ng5 {[%clk 0:01:48]}  Bd7 {[%clk 0:01:57]} 18. Qf3 {[%clk 0:01:42]}  Qe7 {[%clk 0:01:52]} 19. d6 {[%clk 0:01:37]}  cxd6 {[%clk 0:01:38]} 20. Nd5 {[%clk 0:01:37]}  Qd8 {[%clk 0:01:31]} 21. Qxf7+ {[%clk 0:01:19]}  Kh8 {[%clk 0:01:31]} 22. Kg2 {[%clk 0:00:57]}  Rf8 {[%clk 0:00:54]} 23. Ne7 {[%clk 0:00:57]}  Bg4 {[%clk 0:00:20]} 24. Nxg6+ {[%clk 0:00:52]}  hxg6 {[%clk 0:00:19]} 25. Rh1+ {[%clk 0:00:53]}  Bh5 {[%clk 0:00:20]} 26. Rxh5+ {[%clk 0:00:53]}  gxh5 {[%clk 0:00:20]} 27. Qxh5+ {[%clk 0:00:53]}  Kg8 {[%clk 0:00:20]} 28. Qh7# {[%clk 0:00:53]} 1-0


[Site "https://www.chess.com"]